[Event "GrandPrix_29.05"]
[Site "Chess.com"]
[Date "2020.05.29"]
[Round "5"]
[White "KruHor"]
[Black "AlexVanGog"]
[Result "0-1"]
[WhiteElo "2352"]
[BlackElo "2423"]
[TimeControl "600+2"]
[EndTime "11:28:28 PDT"]
[Termination "AlexVanGog won by resignation"]

1. d4 {[%clk 0:09:56.7]} 1... Nf6 {[%clk 0:10:00.1]} 2. Nf3 {[%clk 0:09:55]}
2... d5 {[%clk 0:09:59.8]} 3. c4 {[%clk 0:09:55]} 3... c6 {[%clk 0:10:01]} 4.
Nc3 {[%clk 0:09:54.9]} 4... e6 {[%clk 0:10:01.8]} 5. g3 {[%clk 0:09:34.7]} 5...
Nbd7 {[%clk 0:10:01.5]} 6. Bg2 {[%clk 0:09:34.4]} 6... dxc4 {[%clk 0:10:02.1]}
7. a4 {[%clk 0:09:34.1]} 7... Be7 {[%clk 0:10:02.8]} 8. O-O {[%clk 0:09:33.4]}
8... O-O {[%clk 0:10:03.4]} 9. a5 {[%clk 0:09:34.1]} 9... b5 {[%clk 0:09:54.6]}
10. axb6 {[%clk 0:09:32.9]} 10... Qxb6 {[%clk 0:09:52.2]} 11. Qc2 {[%clk
0:09:19.7]} 11... Bb7 {[%clk 0:09:45.4]} 12. Rd1 {[%clk 0:08:41.8]} 12... c5
{[%clk 0:09:41.9]} 13. Be3 {[%clk 0:07:43.2]} 13... Nd5 {[%clk 0:09:37.2]} 14.
Bg5 {[%clk 0:07:37.2]} 14... Nb4 {[%clk 0:09:15.5]} 15. Qb1 {[%clk 0:07:17.2]}
15... f6 {[%clk 0:08:42]} 16. Be3 {[%clk 0:05:33]} 16... Nd5 {[%clk 0:08:40.6]}
17. dxc5 {[%clk 0:05:31.3]} 17... Nxc5 {[%clk 0:08:28.3]} 18. Na4 {[%clk
0:05:13.9]} 18... Qc7 {[%clk 0:08:27.4]} 19. Bxc5 {[%clk 0:04:57.6]} 19... Bxc5
{[%clk 0:08:27.7]} 20. Qe4 {[%clk 0:04:41.6]} 20... Rae8 {[%clk 0:07:48.9]} 21.
Nxc5 {[%clk 0:04:29.2]} 21... Qxc5 {[%clk 0:07:50.8]} 22. Nd4 {[%clk 0:04:22.8]}
22... Qb6 {[%clk 0:07:17.8]} 23. Qc2 {[%clk 0:03:47.9]} 23... Rc8 {[%clk
0:06:58]} 24. Qa4 {[%clk 0:03:38.5]} 24... c3 {[%clk 0:06:44.6]} 25. Qxa7 {[%clk
0:03:04.1]} 25... cxb2 {[%clk 0:06:10.7]} 26. Qxb6 {[%clk 0:02:22.1]} 26... Nxb6
{[%clk 0:06:09]} 27. Bxb7 {[%clk 0:01:48.8]} 27... bxa1=Q {[%clk 0:06:06.2]} 28.
Rxa1 {[%clk 0:01:49.3]} 28... Rb8 {[%clk 0:05:57.5]} 29. Bf3 {[%clk 0:01:48.8]}
29... Rfe8 {[%clk 0:05:51]} 30. Ra6 {[%clk 0:01:44.4]} 30... Nd7 {[%clk
0:04:42.8]} 31. Bc6 {[%clk 0:01:34.2]} 31... Nc5 {[%clk 0:04:20.3]} 32. Ra5
{[%clk 0:01:21.9]} 32... Red8 {[%clk 0:04:20.3]} 33. Rxc5 {[%clk 0:00:48.5]}
33... Rxd4 {[%clk 0:04:20.2]} 34. h4 {[%clk 0:00:48]} 34... Kf7 {[%clk
0:04:18.2]} 35. Bf3 {[%clk 0:00:47.7]} 35... Ke7 {[%clk 0:04:18.2]} 36. Rc7+
{[%clk 0:00:47]} 36... Rd7 {[%clk 0:04:18.4]} 37. Rc1 {[%clk 0:00:46.3]} 37...
Rb4 {[%clk 0:04:13.6]} 38. Kg2 {[%clk 0:00:46.7]} 38... f5 {[%clk 0:04:14.7]}
39. Rc6 {[%clk 0:00:45.7]} 39... g6 {[%clk 0:04:07.7]} 40. Ra6 {[%clk
0:00:43.5]} 40... h6 {[%clk 0:04:08.3]} 41. Ra8 {[%clk 0:00:38.7]} 41... g5
{[%clk 0:04:07.9]} 42. hxg5 {[%clk 0:00:37.4]} 42... hxg5 {[%clk 0:04:09.8]} 43.
Rh8 {[%clk 0:00:27.9]} 43... g4 {[%clk 0:04:07.3]} 44. Bc6 {[%clk 0:00:28.1]}
44... Rd2 {[%clk 0:04:05.7]} 45. Rh7+ {[%clk 0:00:25.9]} 45... Kf6 {[%clk
0:04:05.3]} 0-1

[Event "GrandPrix_29.05"]
[Site "Chess.com"]
[Date "2020.05.29"]
[Round "5"]
[White "Artur0208"]
[Black "DaviD-GevorG"]
[Result "1-0"]
[WhiteElo "2330"]
[BlackElo "1848"]
[TimeControl "600+2"]
[EndTime "11:28:32 PDT"]
[Termination "Artur0208 won by resignation"]

1. d4 {[%clk 0:10:01.9]} 1... Nf6 {[%clk 0:10:00.5]} 2. c4 {[%clk 0:10:02.8]}
2... g6 {[%clk 0:10:01.9]} 3. Nc3 {[%clk 0:10:03.4]} 3... Bg7 {[%clk 0:10:03.5]}
4. e4 {[%clk 0:10:03.8]} 4... d6 {[%clk 0:10:04.9]} 5. Be2 {[%clk 0:10:05.2]}
5... O-O {[%clk 0:10:05.5]} 6. Be3 {[%clk 0:10:06.8]} 6... c5 {[%clk 0:09:59.8]}
7. dxc5 {[%clk 0:10:07.4]} 7... Qa5 {[%clk 0:10:01]} 8. Bd2 {[%clk 0:10:08.6]}
8... Qxc5 {[%clk 0:09:30.8]} 9. Nf3 {[%clk 0:10:08.5]} 9... Be6 {[%clk
0:08:32.2]} 10. Be3 {[%clk 0:10:02.7]} 10... Qb4 {[%clk 0:06:35.9]} 11. a3
{[%clk 0:10:03.5]} 11... Qa5 {[%clk 0:06:14.2]} 12. b4 {[%clk 0:09:08]} 12...
Qc7 {[%clk 0:06:01.7]} 13. Rc1 {[%clk 0:09:07.4]} 13... Nc6 {[%clk 0:04:50.1]}
14. O-O {[%clk 0:09:03.3]} 14... Rfd8 {[%clk 0:04:22.6]} 15. Ng5 {[%clk
0:08:53.4]} 15... Qd7 {[%clk 0:04:12.3]} 16. f3 {[%clk 0:08:39.8]} 16... Rac8
{[%clk 0:03:40.7]} 17. Qd2 {[%clk 0:08:39.8]} 17... Ne5 {[%clk 0:03:25.8]} 18.
Nxe6 {[%clk 0:08:38.3]} 18... fxe6 {[%clk 0:03:20.3]} 19. Nb5 {[%clk 0:08:38.7]}
19... a6 {[%clk 0:02:36.9]} 20. Nd4 {[%clk 0:08:36]} 20... Nc6 {[%clk
0:02:21.9]} 21. Nb3 {[%clk 0:08:35.6]} 21... Rf8 {[%clk 0:01:42.1]} 22. Rfd1
{[%clk 0:08:31.1]} 22... Qe8 {[%clk 0:01:42.1]} 23. b5 {[%clk 0:08:02.3]} 23...
axb5 {[%clk 0:01:16.2]} 24. cxb5 {[%clk 0:08:04.2]} 24... Ne5 {[%clk 0:01:08.9]}
25. Nd4 {[%clk 0:07:57.6]} 25... Qd7 {[%clk 0:00:41]} 26. Nb3 {[%clk 0:06:46.5]}
26... Rxc1 {[%clk 0:00:36.8]} 27. Rxc1 {[%clk 0:06:37.8]} 27... Rc8 {[%clk
0:00:37.3]} 28. Bd4 {[%clk 0:06:38.9]} 28... Rxc1+ {[%clk 0:00:35.9]} 29. Qxc1
{[%clk 0:06:40.8]} 29... Ne8 {[%clk 0:00:14.7]} 30. a4 {[%clk 0:06:40.3]} 30...
h5 {[%clk 0:00:10.9]} 31. a5 {[%clk 0:06:40]} 31... Nc7 {[%clk 0:00:10.8]} 32.
a6 {[%clk 0:05:46.1]} 32... bxa6 {[%clk 0:00:11.4]} 33. bxa6 {[%clk 0:05:40]}
33... Nxa6 {[%clk 0:00:06.4]} 34. Bxa6 {[%clk 0:05:37.1]} 34... Qa4 {[%clk
0:00:07.4]} 35. Bxe5 {[%clk 0:05:28.4]} 35... Bxe5 {[%clk 0:00:05.7]} 36. Bc4
{[%clk 0:05:28.9]} 36... Qa7+ {[%clk 0:00:04]} 37. Kh1 {[%clk 0:05:29.2]} 37...
Qf2 {[%clk 0:00:04.5]} 38. Bxe6+ {[%clk 0:05:28.4]} 38... Kg7 {[%clk 0:00:05.1]}
39. Qg1 {[%clk 0:05:25.7]} 39... Qh4 {[%clk 0:00:05.2]} 40. Nd2 {[%clk
0:05:24.8]} 40... Bxh2 {[%clk 0:00:03.9]} 41. Qxh2 {[%clk 0:05:22.5]} 41... Qe1+
{[%clk 0:00:05.4]} 42. Nf1 {[%clk 0:05:24.2]} 42... Qxf1+ {[%clk 0:00:06.7]} 43.
Qg1 {[%clk 0:05:25.4]} 43... Qxg1+ {[%clk 0:00:01.7]} 44. Kxg1 {[%clk
0:05:26.2]} 44... Kf6 {[%clk 0:00:03.6]} 45. Bc4 {[%clk 0:05:26.7]} 45... g5
{[%clk 0:00:04]} 46. Kf2 {[%clk 0:05:26.6]} 46... Ke5 {[%clk 0:00:03.1]} 47. Bf7
{[%clk 0:05:25.6]} 47... h4 {[%clk 0:00:02.6]} 48. Ke3 {[%clk 0:05:26.9]} 48...
e6 {[%clk 0:00:04]} 49. Bg8 {[%clk 0:05:27.5]} 49... d5 {[%clk 0:00:05.4]} 50.
exd5 {[%clk 0:05:29]} 50... exd5 {[%clk 0:00:07.3]} 51. Kd3 {[%clk 0:05:18.2]}
51... d4 {[%clk 0:00:07.2]} 52. Bb3 {[%clk 0:05:13.9]} 52... Kf4 {[%clk
0:00:07.2]} 53. Be6 {[%clk 0:05:14.4]} 53... Kg3 {[%clk 0:00:07]} 54. Bh3 {[%clk
0:05:15.4]} 54... g4 {[%clk 0:00:03.5]} 55. fxg4 {[%clk 0:05:17.3]} 55... Kf4
{[%clk 0:00:04.8]} 56. Kxd4 {[%clk 0:05:18.1]} 56... Kg5 {[%clk 0:00:06]} 57.
Ke5 {[%clk 0:05:20]} 1-0

[Event "GrandPrix_29.05"]
[Site "Chess.com"]
[Date "2020.05.29"]
[Round "5"]
[White "Angry_Twin"]
[Black "Lukianoo"]
[Result "1/2-1/2"]
[WhiteElo "2468"]
[BlackElo "2566"]
[TimeControl "600+2"]
[EndTime "11:28:37 PDT"]
[Termination "Game drawn by repetition"]

1. e4 {[%clk 0:10:01.9]} 1... c6 {[%clk 0:09:53.4]} 2. d4 {[%clk 0:09:56.1]}
2... d5 {[%clk 0:09:53.4]} 3. e5 {[%clk 0:09:57.1]} 3... Bf5 {[%clk 0:09:53.7]}
4. Nf3 {[%clk 0:09:57.8]} 4... e6 {[%clk 0:09:53.8]} 5. Be2 {[%clk 0:09:58]}
5... Nd7 {[%clk 0:09:54.3]} 6. O-O {[%clk 0:09:58.6]} 6... Nh6 {[%clk
0:09:55.2]} 7. Nbd2 {[%clk 0:09:57.3]} 7... Be7 {[%clk 0:09:54]} 8. Nb3 {[%clk
0:09:57.3]} 8... O-O {[%clk 0:09:54.5]} 9. Ne1 {[%clk 0:09:48.9]} 9... c5 {[%clk
0:09:51.7]} 10. Bxh6 {[%clk 0:09:12]} 10... gxh6 {[%clk 0:09:45.8]} 11. dxc5
{[%clk 0:09:11.8]} 11... Nxe5 {[%clk 0:09:29.9]} 12. g4 {[%clk 0:08:57.8]} 12...
Bg6 {[%clk 0:09:13.8]} 13. f4 {[%clk 0:08:58.4]} 13... Nc4 {[%clk 0:09:14.7]}
14. f5 {[%clk 0:08:47.1]} 14... exf5 {[%clk 0:09:13.1]} 15. gxf5 {[%clk
0:08:49]} 15... Ne3 {[%clk 0:09:12.1]} 16. Qd3 {[%clk 0:08:48.3]} 16... Nxf1
{[%clk 0:09:10.3]} 17. fxg6 {[%clk 0:08:49.3]} 17... fxg6 {[%clk 0:09:04.1]} 18.
Bxf1 {[%clk 0:08:45.8]} 18... Qc7 {[%clk 0:08:08]} 19. Qxd5+ {[%clk 0:07:22.4]}
19... Kh8 {[%clk 0:08:08.2]} 20. Bg2 {[%clk 0:06:59.4]} 20... Rad8 {[%clk
0:08:08.4]} 21. Qe4 {[%clk 0:06:43]} 21... Bxc5+ {[%clk 0:08:08]} 22. Nxc5
{[%clk 0:06:36.9]} 22... Qxc5+ {[%clk 0:08:08]} 23. Kh1 {[%clk 0:06:37.5]} 23...
Rde8 {[%clk 0:08:03]} 24. Qd3 {[%clk 0:06:17.6]} 24... Re3 {[%clk 0:08:01.9]}
25. Qd2 {[%clk 0:05:57.2]} 25... Qg5 {[%clk 0:07:15.6]} 26. Nd3 {[%clk
0:05:46.4]} 26... Re7 {[%clk 0:07:01.2]} 27. Qxg5 {[%clk 0:05:32.6]} 27... hxg5
{[%clk 0:07:03.1]} 28. Bf1 {[%clk 0:05:27.2]} 28... g4 {[%clk 0:07:03.2]} 29.
Rd1 {[%clk 0:05:26.3]} 29... h5 {[%clk 0:07:02.4]} 30. Kg1 {[%clk 0:05:18.9]}
30... Rd8 {[%clk 0:06:59.6]} 31. c4 {[%clk 0:04:17.8]} 31... Kg7 {[%clk
0:06:59.5]} 32. b4 {[%clk 0:04:16.6]} 32... Re4 {[%clk 0:06:57.6]} 33. Rc1
{[%clk 0:04:11.7]} 33... Re3 {[%clk 0:06:50.3]} 34. Rc3 {[%clk 0:04:12.8]} 34...
g3 {[%clk 0:06:48.1]} 35. h3 {[%clk 0:03:31.7]} 35... g5 {[%clk 0:06:36.8]} 36.
c5 {[%clk 0:03:31.9]} 36... h4 {[%clk 0:06:27.8]} 37. b5 {[%clk 0:03:19.3]}
37... g4 {[%clk 0:06:28.1]} 38. c6 {[%clk 0:02:42.4]} 38... bxc6 {[%clk
0:06:22.2]} 39. bxc6 {[%clk 0:02:44.3]} 39... gxh3 {[%clk 0:06:21.5]} 40. Bxh3
{[%clk 0:02:43.8]} 40... Rdxd3 {[%clk 0:05:26.4]} 41. Rxd3 {[%clk 0:02:44.6]}
41... Rxd3 {[%clk 0:05:28.3]} 42. c7 {[%clk 0:02:46.3]} 42... Rd1+ {[%clk
0:05:29.9]} 43. Kg2 {[%clk 0:02:47.3]} 43... Rd2+ {[%clk 0:05:31.2]} 44. Kf1
{[%clk 0:02:15.2]} 44... Rd1+ {[%clk 0:05:16]} 45. Ke2 {[%clk 0:01:43.9]} 45...
g2 {[%clk 0:05:11.7]} 46. c8=Q {[%clk 0:01:27.5]} 46... g1=Q {[%clk 0:05:10]}
47. Qc7+ {[%clk 0:01:12]} 47... Kf6 {[%clk 0:05:06.1]} 48. Qf4+ {[%clk 0:01:05]}
48... Kg7 {[%clk 0:04:51]} 49. Qc7+ {[%clk 0:01:04.4]} 49... Kf8 {[%clk
0:04:39.5]} 50. Qc8+ {[%clk 0:01:01.5]} 50... Kf7 {[%clk 0:04:35.9]} 51. Qc7+
{[%clk 0:01:02.4]} 51... Ke8 {[%clk 0:04:34]} 52. Qc6+ {[%clk 0:01:02.3]} 52...
Ke7 {[%clk 0:04:23.3]} 53. Qc7+ {[%clk 0:01:02.3]} 53... Ke8 {[%clk 0:04:07.5]}
54. Qc8+ {[%clk 0:00:51.8]} 54... Ke7 {[%clk 0:04:08.3]} 55. Qc7+ {[%clk
0:00:52.8]} 55... Ke8 {[%clk 0:04:09.5]} 1/2-1/2

[Event "GrandPrix_29.05"]
[Site "Chess.com"]
[Date "2020.05.29"]
[Round "5"]
[White "LorisinoC"]
[Black "IriBu"]
[Result "0-1"]
[WhiteElo "2144"]
[BlackElo "2229"]
[TimeControl "600+2"]
[EndTime "11:28:40 PDT"]
[Termination "IriBu won by resignation"]

1. e4 {[%clk 0:10:01.9]} 1... Nf6 {[%clk 0:09:58.1]} 2. e5 {[%clk 0:09:59.9]}
2... Nd5 {[%clk 0:09:59.2]} 3. d4 {[%clk 0:09:58.6]} 3... d6 {[%clk 0:10:00.2]}
4. Nf3 {[%clk 0:09:58.2]} 4... Bg4 {[%clk 0:10:00.5]} 5. h3 {[%clk 0:09:58.2]}
5... Bxf3 {[%clk 0:09:58.6]} 6. Qxf3 {[%clk 0:09:57.5]} 6... dxe5 {[%clk
0:09:57.7]} 7. dxe5 {[%clk 0:09:46.5]} 7... e6 {[%clk 0:09:50.7]} 8. Bc4 {[%clk
0:09:30.6]} 8... c6 {[%clk 0:09:48.6]} 9. O-O {[%clk 0:09:25.7]} 9... Nd7 {[%clk
0:09:49]} 10. Re1 {[%clk 0:08:50.6]} 10... Qc7 {[%clk 0:09:41.4]} 11. Bxd5
{[%clk 0:08:04.5]} 11... cxd5 {[%clk 0:09:41.2]} 12. Qc3 {[%clk 0:07:53.3]}
12... Qxc3 {[%clk 0:09:33.1]} 13. Nxc3 {[%clk 0:07:53.1]} 13... Bb4 {[%clk
0:09:21.1]} 14. Bd2 {[%clk 0:07:39.5]} 14... Rc8 {[%clk 0:09:01.3]} 15. Rac1
{[%clk 0:06:49.6]} 15... O-O {[%clk 0:08:37.7]} 16. Ne4 {[%clk 0:06:22.8]} 16...
Bxd2 {[%clk 0:08:07.9]} 17. Nxd2 {[%clk 0:06:23]} 17... Rc7 {[%clk 0:08:09]} 18.
Nf3 {[%clk 0:05:39]} 18... Rfc8 {[%clk 0:08:07.4]} 19. c3 {[%clk 0:05:39.2]}
19... b5 {[%clk 0:08:00.2]} 20. a3 {[%clk 0:04:45.2]} 20... Nb6 {[%clk
0:07:50.8]} 21. Nd4 {[%clk 0:04:25.1]} 21... a6 {[%clk 0:07:51.2]} 22. f4 {[%clk
0:04:22.6]} 22... Na4 {[%clk 0:07:48.5]} 23. Re2 {[%clk 0:04:07]} 23... Nc5
{[%clk 0:07:35.5]} 24. Rec2 {[%clk 0:03:53.8]} 24... Kf8 {[%clk 0:07:20.7]} 25.
Rd1 {[%clk 0:03:33.4]} 25... Ke7 {[%clk 0:07:18.8]} 26. Kf2 {[%clk 0:03:32.3]}
26... Ne4+ {[%clk 0:07:09.8]} 27. Ke3 {[%clk 0:03:31.7]} 27... f6 {[%clk
0:06:55.9]} 28. exf6+ {[%clk 0:03:18.9]} 28... gxf6 {[%clk 0:06:56.4]} 29. g4
{[%clk 0:03:16.5]} 29... e5 {[%clk 0:06:28.3]} 30. fxe5 {[%clk 0:03:14.1]} 30...
fxe5 {[%clk 0:06:29.2]} 31. Nf5+ {[%clk 0:03:14.7]} 31... Ke6 {[%clk 0:06:27.5]}
32. Rd3 {[%clk 0:02:44.7]} 32... a5 {[%clk 0:06:14.3]} 33. Kf3 {[%clk 0:02:38]}
33... b4 {[%clk 0:05:58.6]} 34. axb4 {[%clk 0:02:27.5]} 34... axb4 {[%clk
0:05:59.3]} 35. Rc1 {[%clk 0:01:25.6]} 35... bxc3 {[%clk 0:05:56.1]} 36. bxc3
{[%clk 0:01:20.2]} 36... Rxc3 {[%clk 0:05:43.6]} 37. Rdxc3 {[%clk 0:00:54.4]}
37... Rxc3+ {[%clk 0:05:45.5]} 38. Rxc3 {[%clk 0:00:54.2]} 38... Nxc3 {[%clk
0:05:47]} 39. h4 {[%clk 0:00:43.6]} 39... d4 {[%clk 0:05:38.8]} 40. Ng3 {[%clk
0:00:40.4]} 40... Kd5 {[%clk 0:05:36.8]} 41. g5 {[%clk 0:00:38.3]} 41... e4+
{[%clk 0:05:29.2]} 42. Kf4 {[%clk 0:00:38.4]} 42... d3 {[%clk 0:05:17.5]} 43.
Nf1 {[%clk 0:00:38.7]} 43... Kd4 {[%clk 0:05:01.7]} 44. h5 {[%clk 0:00:30.1]}
44... Nd5+ {[%clk 0:04:39.5]} 45. Kf5 {[%clk 0:00:28.7]} 45... e3 {[%clk
0:04:39.5]} 46. g6 {[%clk 0:00:17.9]} 46... hxg6+ {[%clk 0:04:39.2]} 47. hxg6
{[%clk 0:00:18.2]} 47... Ne7+ {[%clk 0:04:16.3]} 48. Kf6 {[%clk 0:00:15.5]}
48... Nxg6 {[%clk 0:04:16.3]} 0-1

[Event "GrandPrix_29.05"]
[Site "Chess.com"]
[Date "2020.05.29"]
[Round "5"]
[White "hypert"]
[Black "Jaka_Brilej"]
[Result "1-0"]
[WhiteElo "2133"]
[BlackElo "2152"]
[TimeControl "600+2"]
[EndTime "11:28:42 PDT"]
[Termination "hypert won by checkmate"]

1. e4 {[%clk 0:10:01.9]} 1... c5 {[%clk 0:10:00.4]} 2. Nf3 {[%clk 0:10:02.5]}
2... Nc6 {[%clk 0:09:54.5]} 3. Bb5 {[%clk 0:10:02.8]} 3... Nf6 {[%clk
0:09:54.6]} 4. Bxc6 {[%clk 0:10:01.7]} 4... dxc6 {[%clk 0:09:52.3]} 5. d3 {[%clk
0:10:02.5]} 5... g6 {[%clk 0:09:52.2]} 6. h3 {[%clk 0:10:02.9]} 6... Bg7 {[%clk
0:09:52.7]} 7. Nc3 {[%clk 0:10:03.8]} 7... O-O {[%clk 0:09:53.7]} 8. Be3 {[%clk
0:10:04.1]} 8... b6 {[%clk 0:09:54.8]} 9. Qd2 {[%clk 0:10:02.3]} 9... Re8 {[%clk
0:09:55.7]} 10. a3 {[%clk 0:10:02.1]} 10... a5 {[%clk 0:09:52.7]} 11. O-O {[%clk
0:10:01.8]} 11... e5 {[%clk 0:09:53.2]} 12. Na4 {[%clk 0:09:53.4]} 12... Ba6
{[%clk 0:08:36.2]} 13. b4 {[%clk 0:09:09.8]} 13... Bb5 {[%clk 0:08:15.4]} 14.
Nc3 {[%clk 0:09:01.2]} 14... cxb4 {[%clk 0:08:02.9]} 15. axb4 {[%clk 0:08:46.9]}
15... Qc7 {[%clk 0:07:11.3]} 16. bxa5 {[%clk 0:07:44.1]} 16... bxa5 {[%clk
0:07:13.2]} 17. Rfb1 {[%clk 0:07:44.3]} 17... Reb8 {[%clk 0:07:12.3]} 18. d4
{[%clk 0:06:15.3]} 18... exd4 {[%clk 0:07:04.1]} 19. Bxd4 {[%clk 0:06:12.4]}
19... Rd8 {[%clk 0:06:49.8]} 20. Qe3 {[%clk 0:06:03.4]} 20... Rdb8 {[%clk
0:06:40.7]} 21. Be5 {[%clk 0:05:42.1]} 21... Qd8 {[%clk 0:05:59.7]} 22. Bxb8
{[%clk 0:05:32.8]} 22... Rxb8 {[%clk 0:06:01.6]} 23. e5 {[%clk 0:04:47.4]} 23...
Nd5 {[%clk 0:05:56.8]} 24. Nxd5 {[%clk 0:04:47.3]} 24... Qxd5 {[%clk 0:05:58.7]}
25. Rxa5 {[%clk 0:04:36.3]} 25... Re8 {[%clk 0:05:55.7]} 26. Re1 {[%clk
0:03:52.6]} 26... Qc4 {[%clk 0:05:54.4]} 27. Ra7 {[%clk 0:03:36.3]} 27... Qxc2
{[%clk 0:05:49.1]} 28. Qf4 {[%clk 0:03:36.9]} 28... Qc4 {[%clk 0:05:28.3]} 29.
Re4 {[%clk 0:03:27]} 29... Qb3 {[%clk 0:04:49.3]} 30. Nd4 {[%clk 0:03:02.1]}
30... Qb1+ {[%clk 0:04:45.5]} 31. Kh2 {[%clk 0:03:02.8]} 31... Bc4 {[%clk
0:04:46.4]} 32. e6 {[%clk 0:02:31.4]} 32... f5 {[%clk 0:04:45.9]} 33. Nxf5
{[%clk 0:00:45.7]} 33... gxf5 {[%clk 0:04:43.7]} 34. Qg3 {[%clk 0:00:21.6]}
34... Qb2 {[%clk 0:04:22.3]} 35. Rxc4 {[%clk 0:00:22.4]} 35... Rxe6 {[%clk
0:04:07.3]} 36. Rb4 {[%clk 0:00:15.5]} 36... Qe5 {[%clk 0:03:21.3]} 37. Rb8+
{[%clk 0:00:14.9]} 37... Re8 {[%clk 0:03:22.6]} 38. Rxe8+ {[%clk 0:00:13.8]}
38... Qxe8 {[%clk 0:03:24.5]} 39. Qxg7# {[%clk 0:00:14.6]} 1-0

[Event "GrandPrix_29.05"]
[Site "Chess.com"]
[Date "2020.05.29"]
[Round "5"]
[White "Hakob-Hakobyan-Arm"]
[Black "Doukis"]
[Result "1-0"]
[WhiteElo "2126"]
[BlackElo "2134"]
[TimeControl "600+2"]
[EndTime "11:28:47 PDT"]
[Termination "Hakob-Hakobyan-Arm won by checkmate"]

1. Nf3 {[%clk 0:10:01.9]} 1... g6 {[%clk 0:09:55.4]} 2. d4 {[%clk 0:10:00.9]}
2... Bg7 {[%clk 0:09:54.9]} 3. c4 {[%clk 0:10:01.3]} 3... d6 {[%clk 0:09:54.2]}
4. Nc3 {[%clk 0:10:02.6]} 4... Nd7 {[%clk 0:09:51.6]} 5. e4 {[%clk 0:10:03]}
5... e5 {[%clk 0:09:52]} 6. Be2 {[%clk 0:10:03.2]} 6... Ne7 {[%clk 0:09:51.9]}
7. O-O {[%clk 0:09:59.7]} 7... O-O {[%clk 0:09:51.8]} 8. Be3 {[%clk 0:10:01.3]}
8... h6 {[%clk 0:09:44]} 9. Qd2 {[%clk 0:09:23.5]} 9... Kh7 {[%clk 0:09:42.6]}
10. Rad1 {[%clk 0:09:22.8]} 10... f5 {[%clk 0:08:46.3]} 11. dxe5 {[%clk
0:09:22.2]} 11... dxe5 {[%clk 0:08:28.9]} 12. exf5 {[%clk 0:09:21.4]} 12... gxf5
{[%clk 0:08:29.2]} 13. Qc2 {[%clk 0:08:38.9]} 13... Ng6 {[%clk 0:07:02.8]} 14.
Bd3 {[%clk 0:07:16]} 14... e4 {[%clk 0:06:24.7]} 15. Nxe4 {[%clk 0:07:16.2]}
15... fxe4 {[%clk 0:06:26.6]} 16. Bxe4 {[%clk 0:07:17.4]} 16... Rf6 {[%clk
0:03:49]} 17. h4 {[%clk 0:05:44.8]} 17... Rxf3 {[%clk 0:00:56.7]} 18. Bxg6+
{[%clk 0:05:42.6]} 18... Kh8 {[%clk 0:00:57.9]} 19. gxf3 {[%clk 0:05:43.7]}
19... Qxh4 {[%clk 0:00:58.2]} 20. Qe4 {[%clk 0:05:36.8]} 20... Qf6 {[%clk
0:00:25.7]} 21. Bd4 {[%clk 0:04:18.3]} 21... Qg5+ {[%clk 0:00:26.1]} 22. Qg4
{[%clk 0:04:19.3]} 22... Nf8 {[%clk 0:00:23.3]} 23. Qxg5 {[%clk 0:04:18.4]}
23... hxg5 {[%clk 0:00:25.2]} 24. Bxg7+ {[%clk 0:04:10]} 24... Kxg7 {[%clk
0:00:27.1]} 25. Be4 {[%clk 0:04:11.9]} 25... c6 {[%clk 0:00:27.3]} 26. Rd6
{[%clk 0:04:02.5]} 26... Be6 {[%clk 0:00:26.7]} 27. b3 {[%clk 0:04:01.7]} 27...
a5 {[%clk 0:00:21.4]} 28. Rfd1 {[%clk 0:03:58.4]} 28... Re8 {[%clk 0:00:20.8]}
29. Rd8 {[%clk 0:03:54.5]} 29... Re7 {[%clk 0:00:21.6]} 30. Kg2 {[%clk 0:03:56]}
30... Rf7 {[%clk 0:00:21.5]} 31. R1d6 {[%clk 0:03:49.9]} 31... Re7 {[%clk
0:00:16.1]} 32. Kg3 {[%clk 0:03:50]} 32... Rf7 {[%clk 0:00:17.3]} 33. Rb8 {[%clk
0:03:48.1]} 33... Re7 {[%clk 0:00:15.6]} 34. Rdd8 {[%clk 0:03:45.8]} 34... Rf7
{[%clk 0:00:16.2]} 35. Ra8 {[%clk 0:03:43.8]} 35... Rf6 {[%clk 0:00:12.6]} 36.
Rxa5 {[%clk 0:03:43.4]} 36... Kh6 {[%clk 0:00:09.7]} 37. Ra7 {[%clk 0:03:36.1]}
37... Rf7 {[%clk 0:00:10.2]} 38. Rxf8 {[%clk 0:03:32.5]} 38... Rxf8 {[%clk
0:00:10.8]} 39. Rxb7 {[%clk 0:03:34.1]} 39... c5 {[%clk 0:00:09.2]} 40. Rh7#
{[%clk 0:03:34.5]} 1-0

[Event "GrandPrix_29.05"]
[Site "Chess.com"]
[Date "2020.05.29"]
[Round "5"]
[White "farhadtahirov"]
[Black "WoodlandMagic"]
[Result "0-1"]
[WhiteElo "1810"]
[BlackElo "2065"]
[TimeControl "600+2"]
[EndTime "11:28:47 PDT"]
[Termination "WoodlandMagic won on time"]

1. c4 {[%clk 0:10:00.9]} 1... c6 {[%clk 0:09:55]} 2. Nc3 {[%clk 0:10:00.3]} 2...
Nf6 {[%clk 0:09:53.9]} 3. Nf3 {[%clk 0:09:58.1]} 3... d5 {[%clk 0:09:54.4]} 4.
e3 {[%clk 0:09:58.1]} 4... g6 {[%clk 0:09:50.5]} 5. b3 {[%clk 0:09:57.7]} 5...
Bg7 {[%clk 0:09:51.4]} 6. Bb2 {[%clk 0:09:59.3]} 6... O-O {[%clk 0:09:52.3]} 7.
Be2 {[%clk 0:09:53.2]} 7... a6 {[%clk 0:09:50.7]} 8. O-O {[%clk 0:09:52.3]} 8...
b5 {[%clk 0:09:51.5]} 9. d4 {[%clk 0:09:33.1]} 9... Bf5 {[%clk 0:09:44.9]} 10.
Rc1 {[%clk 0:09:29.1]} 10... Nbd7 {[%clk 0:09:39.9]} 11. a4 {[%clk 0:08:43.8]}
11... dxc4 {[%clk 0:08:55.6]} 12. axb5 {[%clk 0:07:00.7]} 12... axb5 {[%clk
0:08:10.7]} 13. bxc4 {[%clk 0:07:00]} 13... bxc4 {[%clk 0:07:57.4]} 14. Nd2
{[%clk 0:06:34.8]} 14... c5 {[%clk 0:07:28.4]} 15. d5 {[%clk 0:06:12.2]} 15...
Ne5 {[%clk 0:07:25.1]} 16. e4 {[%clk 0:06:05.1]} 16... Bd7 {[%clk 0:07:21]} 17.
Qc2 {[%clk 0:05:03.4]} 17... Rb8 {[%clk 0:07:14.2]} 18. Bxc4 {[%clk 0:04:21.1]}
18... Nxe4 {[%clk 0:07:03.5]} 19. Ndxe4 {[%clk 0:02:47.2]} 19... Nxc4 {[%clk
0:07:01.1]} 20. Ba1 {[%clk 0:02:48.6]} 20... Qa5 {[%clk 0:05:56]} 21. Qe2 {[%clk
0:02:39]} 21... Nd6 {[%clk 0:05:42.6]} 22. Nxd6 {[%clk 0:02:17]} 22... exd6
{[%clk 0:05:42.2]} 23. Ne4 {[%clk 0:02:18.4]} 23... Bb5 {[%clk 0:03:55.2]} 24.
Qf3 {[%clk 0:02:00.4]} 24... Bxf1 {[%clk 0:03:54.4]} 25. Bxg7 {[%clk 0:00:23.7]}
25... Kxg7 {[%clk 0:03:54.4]} 26. Qf6+ {[%clk 0:00:25.1]} 26... Kg8 {[%clk
0:03:55]} 27. Rxf1 {[%clk 0:00:25.8]} 27... Qd8 {[%clk 0:03:51.9]} 28. Qf4
{[%clk 0:00:25.9]} 28... Qe7 {[%clk 0:03:40.8]} 29. h4 {[%clk 0:00:25.8]} 29...
Qe5 {[%clk 0:03:35.4]} 30. Qf3 {[%clk 0:00:24.7]} 30... Kg7 {[%clk 0:03:10.7]}
31. Re1 {[%clk 0:00:24.4]} 31... f5 {[%clk 0:03:03.6]} 0-1